Cogmind - Beta 16 --- EXPLORER MODE // 2026.01.01 @ 15:33:47 Player: K.K.Y. Result: Destroyed by S-10 Pest with Light Assault Rifle Performance ------------- Evolutions (0) 0 Regions Visited (3) 600 Robots Destroyed (48) 240 Value Destroyed (1161) 1161 Prototype IDs (1) 20 Alien Tech Used (0) 0 Bonus (37) 37 TOTAL SCORE: 2058 Bonus ------- Follower Combat Kills 37 Cogmind --------- Core Integrity 0/250 Matter 300/300 Energy 180/180 System Corruption 0% Temperature Cool (0) Movement Treading (160) Location -10/Subcaves Parts ------- > --- POWER (1) -------- Meta Core > --- PROPULSION (2+1) - Light Treads Light Treads (+) > --- UTILITY (3+1) ---- Large Storage Unit Structural Scanner ECM Suite > --- WEAPON (2+1) ----- Makeshift Axe > --- INVENTORY (15) --- Light Treads Light Treads Light Treads Improved Heat Sink Medium Storage Unit Weight Redist. System Improved Terrain Scanner Seismic Detector Makeshift Light Armor Plating Makeshift Light Armor Plating Makeshift Light Armor Plating Enhanced Flamer Makeshift Hammer Ripper Peak State ------------ > --- POWER ------------ Meta Core > --- PROPULSION ------- Light Treads Light Treads Light Treads > --- UTILITY ---------- Large Storage Unit Structural Scanner ECM Suite > --- WEAPON ----------- Makeshift Shrapnel Gun Makeshift Axe > --- INVENTORY -------- Light Treads Light Treads Light Treads Improved Heat Sink Medium Storage Unit Weight Redist. System Improved Terrain Scanner Seismic Detector Makeshift Light Armor Plating Makeshift Light Armor Plating Makeshift Light Armor Plating Enhanced Flamer Makeshift Hammer Ripper [Rating: 30] Favorites ----------- Power Makeshift Power Source Engine Makeshift Power Source Power Core Light Nuclear Core Propulsion Light Treads Treads Light Treads Utility ECM Suite Device ECM Suite Storage Large Storage Unit Protection Light Armor Plating Weapon Makeshift Shrapnel Gun Energy Gun Particle Gun Ballistic Gun Makeshift Shrapnel Gun Ballistic Cannon Light Cannon Slashing Weapon Makeshift Axe Build | -11 -10 -10 -10 ------- Run | Yrd Mat Min Sub Slots Evolved 1 | . 1 . . Power . | . . . . Propulsion . | . . . . Utility 1 | . 1 . . Weapon . | . . . . Parts Attached 28 | 6 7 . 15 Power 6 | 1 2 . 3 Engine 3 | 1 1 . 1 Core 3 | . 1 . 2 Reactor . | . . . . Propulsion 8 | 2 2 . 4 Treads 8 | 2 2 . 4 Leg . | . . . . Wheel . | . . . . Hover . | . . . . Flight . | . . . . Utility 5 | 2 1 . 2 Device 3 | 1 . . 2 Storage 1 | . 1 . . Processor . | . . . . Hackware . | . . . . Protection 1 | 1 . . . Artifact . | . . . . Weapon 9 | 1 2 . 6 Energy Gun 2 | . 2 . . Energy Cannon . | . . . . Ballistic Gun 5 | 1 . . 4 Ballistic Cannon 1 | . . . 1 Launcher . | . . . . Special Weapon . | . . . . Impact Weapon . | . . . . Slashing Weapon 1 | . . . 1 Piercing Weapon . | . . . . Special Melee Weapon . | . . . . Unidentified Prototypes 1 | . . . 1 Parts Lost 7 | . . . 7 Power 2 | . . . 2 Propulsion 3 | . . . 3 Utility . | . . . . Weapon 2 | . . . 2 Highest Loss Streak 3 | . . . 3 To Critical Strikes 1 | . . . 1 Average Backups 13 | 2 7 12 14 Power . | . . . . Propulsion 2 | . 1 3 3 Utility 6 | 2 4 6 7 Weapon 2 | . 1 2 3 Tool/Special . | . . . . Unused Backups 15 | . . . 15 Power . | . . . . Propulsion 1 | . . . 1 Utility 9 | . . . 9 Weapon 5 | . . . 5 Tool/Special . | . . . . Average Slot Usage (%) 92 | . 92 79 95 Engine 6 | . 10 . 6 Core 5 | . . 12 4 Treads 24 | . 24 25 24 Device 19 | . 12 12 23 Storage 11 | . 9 12 11 Protection 1 | . 10 . . Energy Gun 6 | . 15 16 . Ballistic Gun 12 | . 6 . 17 Slashing Weapon 2 | . . . 4 Peak Build Rating 30 | 6 11 11 30 Average Rating 16 | 4 9 10 20 On Entrance 7 | . 6 11 11 Avg Prop Armor Cover (%) . | . . . . Naked Turns . | . . . . Heaviest Build 35 | 10 35 32 34 Greatest Support 60 | 40 40 40 60 Greatest Overweight (x) 1 | . . . 1 Average Overweight (x) . | . . . . Largest Inventory Capacity 15 | 5 15 15 15 Average Capacity 14 | 5 13 15 15 Most Carried 15 | 5 15 14 15 Average Carried 13 | 2 7 12 14 Final Capacity 15 | 5 15 15 15 Final Carried 14 | 4 11 14 14 Class Distribution -------------------- 100% | Hacker-Mutant Dominant Class ---------------- Hacker-Mutant | -10/Materials Hacker-Mutant | -10/Mines Hacker-Mutant | -10/Subcaves Resources | -11 -10 -10 -10 ----------- Run | Yrd Mat Min Sub Matter Collected 1521 | 269 155 50 1047 Remotely . | . . . . Salvage Created 1713 | 137 689 119 768 Parts 107 | 12 37 10 48 Haulers Intercepted 2 | . 2 . . Recyclers Shooed 1 | . 1 . . Parts Field Recycled . | . . . . Retrieved Matter . | . . . . Parts Self-Destructed . | . . . . Prevented . | . . . . Parts Restored . | . . . . Kills | -11 -10 -10 -10 ------- Run | Yrd Mat Min Sub Combat Hostiles Destroyed 33 | . 10 4 19 Melee 3 | . . . 3 Guns 29 | . 10 4 15 Cannons 1 | . . . 1 Classes Destroyed 10 | 2 5 . 3 Builder 3 | . 2 1 . Tunneler 3 | 2 . 1 . Hauler 2 | . 2 . . Recycler 3 | 1 2 . . Turret 2 | . . . 2 Watcher 2 | . 2 . . Swarmer 10 | . 4 2 4 Grunt 8 | . 6 2 . Artisan 1 | . . . 1 Subdweller 15 | . . . 15 Best Kill Streak 5 | 2 4 2 5 Combat Bots Only 3 | . 2 2 3 Max Kills in Single Turn 2 | 1 1 1 2 Gunslinging 1 | . . . 1 Exploded . | . . . . Melee 1 | . . . 1 Uniques/NPCs Destroyed . | . . . . Combat | -11 -10 -10 -10 -------- Run | Yrd Mat Min Sub Hostile Shots Fired 198 | . 39 21 138 Missed 51 | . 12 4 35 Hits 147 | . 27 17 103 Projectile 147 | . 27 17 103 AOE 3 | . . . 3 Critical Strikes 2 | . . . 2 Damage Taken 1355 | . 212 130 1013 Core 250 | . 58 37 155 Absorbed by Shields . | . . . . Ignored by Resistances 834 | . 132 85 617 Core Remaining (%) 100 | 100 . . . Volleys Fired 193 | 3 48 17 125 Largest 2 | 1 2 2 2 Hottest 115 | 20 115 115 95 Shots Fired 350 | 3 76 25 246 Gun 313 | 3 76 25 209 Cannon 37 | . . . 37 Launcher . | . . . . Special . | . . . . Kinetic 246 | 3 35 . 208 Thermal 104 | . 41 25 38 Explosive . | . . . . Electromagnetic . | . . . . Robot Hit Streak 69 | 3 20 17 69 Robot Miss Streak 2 | . 2 1 1 Penetration Max . | . . . . Secondary Targets 2 | . . 1 1 Max Gunslinging Chain 1 | . . 1 1 Shots Hit Robots 211 | 3 63 23 122 Core Hits 81 | 3 28 9 41 Critical Kills . | . . . . Critical Parts Destroyed . | . . . . Critical Strikes 1 | . . . 1 Sever 1 | . . . 1 Melee Attacks 27 | . . . 27 Impact . | . . . . Slashing 27 | . . . 27 Piercing . | . . . . Sneak Attacks 1 | . . . 1 Combat Hostiles . | . . . . Follow-up Attacks . | . . . . Damage Inflicted 3145 | 39 861 348 1897 Guns 2876 | 39 861 348 1628 Cannons 51 | . . . 51 Explosions . | . . . . Melee 214 | . . . 214 Ramming 4 | . . . 4 Kinetic 2056 | 39 402 . 1615 Thermal 871 | . 459 348 64 Explosive . | . . . . Electromagnetic . | . . . . Impact . | . . . . Slashing 214 | . . . 214 Piercing . | . . . . Highest Corruption . | . . . . Average Corruption . | . . . . Corruption Purged . | . . . . Corruption Blocked . | . . . . Overload Shots . | . . . . Overflow Damage 27 | . . . 27 Projectiles . | . . . . Explosions . | . . . . Melee 27 | . . . 27 Knockbacks 1 | . . . 1 Impact . | . . . . Kinetic 1 | . . . 1 Secondary . | . . . . Self-Inflicted Damage . | . . . . Shots . | . . . . Rammed 1 | . . . 1 Targets Rammed 2 | . . . 2 Kicked . | . . . . Crushed 1 | . . . 1 Highest Temperature 524 | . 524 418 159 Average Temperature 138 | . 148 135 53 Received Heat Transfer 796 | . 111 105 580 Effects 9 | . 8 1 . Shutdowns 1 | . 1 . . Energy Bleed 1 | . 1 . . Interference 2 | . 2 . . Short Circuit 1 | . . 1 . Damage (minor) 1 | . 1 . . Damage (major) 3 | . 3 . . Siege Activations . | . . . . Martial Activations . | . . . . Shielding Activations . | . . . . Robots Disrupted . | . . . . Combat Hostiles . | . . . . Robots Corrupted . | . . . . Combat Hostiles . | . . . . Parts Fried . | . . . . Impact Corruptions . | . . . . Robots Melted . | . . . . Combat Hostiles . | . . . . Parts Melted 1 | . 1 . . Heat Transferred 2183 | . 1147 888 148 Parts Sabotaged . | . . . . Parts Stolen . | . . . . Parts Stripped . | . . . . Power Chain Reactions . | . . . . Alert | -11 -10 -10 -10 ------- Run | Yrd Mat Min Sub Maximum Alert Level . | . . . . Low Security (%) 100 | 100 100 100 . Level 1 . | . . . . Level 2 . | . . . . Level 3 . | . . . . Level 4 . | . . . . Level 5 . | . . . . High Security . | . . . . Max Security . | . . . . Peak Influence 50 | 10 50 50 . Initial . | . . . . Average 5 | 2 8 2 . Influence Increases 569 | 15 304 110 140 Destroy 0b10 Robot/C 420 | . 200 80 140 Destroy 0b10 Robot/NC 65 | 15 40 10 . Destroy Leader 68 | . 48 20 . Destroy Structure 1 | . 1 . . Partial Spotted 15 | . 15 . . Influence Decreases 549 | 15 304 110 120 Time Decay 549 | 15 304 110 120 Squads Dispatched . | . . . . Investigation . | . . . . Extermination . | . . . . Reinforcement . | . . . . Assault . | . . . . Garrison . | . . . . Intercept . | . . . . Searches Triggered . | . . . . Construction Impeded . | . . . . Haulers Reinforced . | . . . . Active Scanning Responses . | . . . . Cargo Convoy Interrupts . | . . . . Stealth | -11 -10 -10 -10 --------- Run | Yrd Mat Min Sub Distress Signals 1 | . 1 . . Communications Jammed . | . . . . Distress Signals . | . . . . Times Spotted 76 | . 18 4 54 Peak Tracking Total 6 | . 2 2 6 Tactical Retreats 3 | . . . 3 ECM-based Alert Blocks 37 | . . . 37 Traps | -11 -10 -10 -10 ------- Run | Yrd Mat Min Sub Traps Triggered 6 | . 5 . 1 Indirectly . | . . . . Trap Hack Attempts . | . . . . Triggered . | . . . . Disarmed . | . . . . Reprogrammed . | . . . . Reused . | . . . . Traps Extracted . | . . . . Installed . | . . . . Triggered . | . . . . Machines | -11 -10 -10 -10 ---------- Run | Yrd Mat Min Sub Machines Disabled 1 | . . . 1 Max in Single Turn 1 | . . . 1 Machines Repaired . | . . . . Machines Dismantled . | . . . . Machines Sabotaged . | . . . . Overloaded Fab Kills . | . . . . Hacking | -11 -10 -10 -10 --------- Run | Yrd Mat Min Sub Machines Accessed 2 | . 1 . 1 Terminals 1 | . 1 . . Fabricators . | . . . . Repair Stations . | . . . . Recycling Units . | . . . . Scanalyzers . | . . . . Garrison Access . | . . . . Total Hacks 7 | . 3 . 4 Successful 5 | . 1 . 4 Failed 2 | . 2 . . Catastrophic 1 | . 1 . . Database Lockouts . | . . . . Manual . | . . . . Terminals 3 | . 3 . . Fabricators . | . . . . Repair Stations . | . . . . Recycling Units . | . . . . Scanalyzers . | . . . . Garrison Access . | . . . . Terminal Hacks 5 | . 1 . 4 Record 4 | . . . 4 Robot Analysis 1 | . 1 . . Fabricator Hacks . | . . . . Repair Station Hacks . | . . . . Recycling Unit Hacks . | . . . . Scanalyzer . | . . . . Garrison Access Hacks . | . . . . Unauthorized Hacks . | . . . . Terminals . | . . . . Fabricators . | . . . . Repair Stations . | . . . . Recycling Units . | . . . . Scanalyzers . | . . . . Garrison Access . | . . . . Data Cores Recovered . | . . . . Used . | . . . . Hacking Detections 1 | . 1 . . Full Trace Events 1 | . 1 . . Feedback Events . | . . . . Feedback Blocked . | . . . . Robot Schematics Acquired . | . . . . Robots Built . | . . . . Authchips . | . . . . Time . | . . . . Total Robot Build Rating . | . . . . Part Schematics Acquired . | . . . . Parts Built . | . . . . Authchips . | . . . . Time . | . . . . Total Part Build Rating . | . . . . Part Studies Acquired . | . . . . Parts Repaired . | . . . . Time . | . . . . Parts Recycled . | . . . . Recycled Matter . | . . . . Retrieved Matter . | . . . . Retrieved Components . | . . . . Parts Scanalyzed . | . . . . Part Schematics Acquired . | . . . . Parts Damaged . | . . . . Bothacking | -11 -10 -10 -10 ------------ Run | Yrd Mat Min Sub Used RIF Installer . | . . . . Robots Hacked . | . . . . Non-combat . | . . . . Combat . | . . . . Robot Hacks Applied . | . . . . Relay Couplers Released . | . . . . Fabnet Peak Effective % . | . . . . Robots Rewired . | . . . . Allies Hacked . | . . . . Hacks Repelled . | . . . . Allies | -11 -10 -10 -10 -------- Run | Yrd Mat Min Sub Total Allies 3 | . . 3 . Largest Group 3 | . . 3 3 Highest-Rated Group 40 | . . 40 40 Highest-Rated Ally 16 | . . 16 16 Total Orders . | . . . . Ally Attacks 51 | . . . 51 Total Damage 237 | . . . 237 Kills 2 | . . . 2 Allies Corrupted . | . . . . Allies Melted . | . . . . Intel | -11 -10 -10 -10 ------- Run | Yrd Mat Min Sub Active Infowar (turns) 3359 | 66 578 . 2715 Structural 2702 | . . . 2702 ECM 1388 | 66 578 . 744 Robot Analysis Total 1 | . 1 . . Derelict Logs Recovered 3 | . . 1 2 Drone Launches . | . . . . Drone Recoveries . | . . . . Exploration | -11 -10 -10 -10 ------------- Run | Yrd Mat Min Sub Turns Passed 6506 | 88 1026 1116 4276 Spaces Moved 3486 | 54 520 626 2286 Core 18 | 18 . . . Treads 3468 | 36 520 626 2286 Legs . | . . . . Wheels . | . . . . Hover . | . . . . Flight . | . . . . Fastest Speed 50 | 50 160 160 160 Average Speed 163 | 123 160 160 166 Slowest Speed 260 | 160 160 160 260 Overloaded Moves . | . . . . Propulsion Burnouts . | . . . . Robots Hopped . | . . . . Potential Cave-ins 1 | . . . 1 Cave-ins Triggered . | . . . . Exploration Rate (%) 68 | 3 84 100 86 Regions Visited 3 Branch Regions 2 Pre-discovered Areas 2 | . . . 2 Known Exits Taken 3 | 1 1 1 . Unknown Exits Taken . | . . . . Scrap Searched 20 | . . . 20 Spaces Dug 15 | . . . 15 Terrain Destroyed 15 | . . . 15 Melee 15 | . . . 15 Projectile . | . . . . AOE . | . . . . Terrain Rammed . | . . . . Walls Destroyed . | . . . . Machines Disabled . | . . . . Actions | -11 -10 -10 -10 --------- Run | Yrd Mat Min Sub Total 3933 | 72 638 717 2506 Wait 136 | . 45 70 21 Move 3483 | 53 519 625 2286 Hop . | . . . . Pick Up 37 | 9 12 3 13 Fast Attach 9 | 2 3 . 4 Attach 13 | 4 3 . 6 Detach 2 | . . 1 1 Swap 13 | . 4 . 9 Drop 18 | 1 4 1 12 Fire 193 | 3 48 17 125 Melee 27 | . . . 27 Ram . | . . . . Kick . | . . . . Crush 2 | . . . 2 Escape Stasis . | . . . . Rewire . | . . . . Trap . | . . . . Miscellaneous . | . . . . Route ------- -11/Scrapyard -10/Materials (discovered 3 exits: *Mat x2 / *Min) -10/Mines (discovered 3 exits: *Mat x2 / *Sub) -10/Subcaves (discovered 3 exits: *Mat x2 / *Rec) History --------- Turn | Location | Event 5 | -11/Scrapyard | Identified exit to Materials 5 | -11/Scrapyard | Discovered exit to Materials (range 16) 89 | -11/Scrapyard | Entered Materials 89 | -10/Materials | Evolved 1 slot: Utility x1 311 | -10/Materials | Build established: Hacker-Mutant 342 | -10/Materials | Identified exit to Materials 342 | -10/Materials | Discovered exit to Materials (range 8) 519 | -10/Materials | Discovered exit to Materials (range 16) 1092 | -10/Materials | Identified exit to Mines 1092 | -10/Materials | Discovered exit to Mines (range 7) 1115 | -10/Materials | Entered Mines 1120 | -10/Mines | Met a Derelict bent on vengeance 1215 | -10/Mines | Received a Rocket Launcher from a helpful Derelict 1458 | -10/Mines | Learned Materials trap positions 1458 | -10/Mines | Discovered exit to Materials (range 6) 1643 | -10/Mines | Assisted by bots powering up and referring to "LRC-V3" 1840 | -10/Mines | Discovered exit to Materials (range 8) 2212 | -10/Mines | Identified exit to Subcaves 2212 | -10/Mines | Discovered exit to Subcaves (range 6) 2231 | -10/Mines | Entered Subcaves 2231 | -10/Subcaves | Accompanied by 3 allies 2370 | -10/Subcaves | Ambushed by angry Subdweller bent on revenge 2452 | -10/Subcaves | Learned Materials terminal intel 2610 | -10/Subcaves | A swath of the cavern ceiling suddenly collapsed 2660 | -10/Subcaves | A swath of the cavern ceiling suddenly collapsed 2740 | -10/Subcaves | Identified exit to Recycling 2740 | -10/Subcaves | Discovered exit to Recycling (range 16) 2858 | -10/Subcaves | Disturbed a concealed Subdweller 2990 | -10/Subcaves | Learned location of 2 exits from Materials 3057 | -10/Subcaves | Core integrity fell below 50% 3236 | -10/Subcaves | Shifting Twisted Machinery released Sub. Power Source 3269 | -10/Subcaves | Identified exit to Materials 3269 | -10/Subcaves | Discovered exit to Materials (range 11) 3299 | -10/Subcaves | Discovered exit to Materials (range 6) 3350 | -10/Subcaves | Shifting Twisted Machinery released Mak. Shrapnel Gun 3379 | -10/Subcaves | Shifting Twisted Machinery released Sub. Machine Gun 4000 | -10/Subcaves | Core integrity fell below 20% 4335 | -10/Subcaves | Disturbed a concealed Subdweller 4562 | -10/Subcaves | Visited Clippyterm 4567 | -10/Subcaves | Learned location of Section 7 (-2) 4567 | -10/Subcaves | Learned location of Extension (-5) 5286 | -10/Subcaves | Shifting Twisted Machinery released Battle Cannon 5901 | -10/Subcaves | A Subdweller sparked back to life 5901 | -10/Subcaves | A Subdweller sparked back to life 5901 | -10/Subcaves | A Subdweller sparked back to life 5942 | -10/Subcaves | Found Prototype Power Core 5942 | -10/Subcaves | Identified Meta Core 5944 | -10/Subcaves | Attached Meta Core, gained temporary slots: Propulsion, Utility, Weapon 5958 | -10/Subcaves | Lost 3 parts (1p1n1w) 6507 | -10/Subcaves | Destroyed by S-10 Pest with Light Assault Rifle Last Messages --------------- 05944_ Core temporarily expanded with Propulsion slot. 05944_ Core temporarily expanded with Utility slot. 05944_ Core temporarily expanded with Weapon slot. 05944_ Acquired 8 matter. 05958_ Acquired Lgt. Treads. 05966_ Acquired 22 matter. 06056_ Sneak attack on HU-FXR(u). 06056_ Destroyed Wheel. 06059_ Destroyed Multitool. 06194_ Acquired 6 matter. 06301_ Acquired 14 matter. 06498_ Critical hit (Destroy). 06498_ Lgt. Treads destroyed. 06499_ Mak. Shrapnel Gun destroyed. 06500_ Slammed into S-10 Pest. 06502_ Crushed S-10 Pest. 06502_ S-10 Pest destroyed. Map ----- +----------------------------------------------------+ | ?????????????########???### ## ####??????????? | | ?????????????#######???#### ### #####??????????? | | ?????????????????????##### ### ######?????????? | | ????????????????????##### " ##"" #####?????????? | | ????????????????????###" "" """" ##?????????? | | ????????????????????##" """ """"" ###?????????? | | ????????????????????### """""""""" ###?????????? | | ???????????????????#### """""""" ##?????????? | | ???????????????????### """""" "* ##?????????? | | ???????????????????## """"""" """ ##?????????? | | ???????????????????##"]"""""" " ##?????????? | | ???????????????????### ###?????????? | | ???????????????????##### ##### ######?????????? | | ????????????????????#### ##### ######??????????? | | ???####?????#####????## #### ###?????????????? | | ##################???## ### ##?????????????? | | ##### ####### ###?#### ### ###?????????????? | | ## ####### ##### ##?????????????? | | ### ###### ##### ##?????????????? | | ?####### ##### ##### ###?????????????? | | ?####### ## #### # # ###?????????????? | | ?????### ####### ##??????????????? | | ?????### ####?###